fUST/lending_fUST_20260503
["ID","MTS","AMOUNT","RATE_DAILY","PERIOD"]
[421497684,1777755032000,-1879.34308082,0.00014538,2]
[421497682,1777755032000,-2230.315306,0.00014226,2]
[421497681,1777755032000,-308.0,0.00014137,3]
[421497683,1777755032000,-192.622,0.00014538,2]
[421497679,1777755032000,-693.3919763,0.00014063,2]
[421497680,1777755032000,-214.44895677,0.00014118,2]
[421497678,1777755032000,-668.65185757,0.00014008,2]
[421497675,1777755032000,-621.78829552,0.00013898,2]
[421497669,1777755032000,-185.80901213,0.00013678,2]
[421497674,1777755032000,-599.60298507,0.00013843,2]
[421497673,1777755032000,-578.20924308,0.00013788,2]
[421497676,1777755032000,-644.79446246,0.00013953,2]
[421497671,1777755032000,-1000.0,0.00013699,2]
[421497672,1777755032000,-557.5788265,0.00013733,2]
[421497668,1777755032000,-2150.738,0.00013678,2]
[421497670,1777755032000,-1000.0,0.00013699,2]
[421497666,1777755032000,-180.2108709,0.00013365,14]
[421497667,1777755032000,-537.6845,0.00013678,2]
[421497677,1777755032000,-300.87160504,0.00013999,2]
[421497665,1777755032000,-250.0,0.00013212,2]
[421497716,1777755040000,-2539.58327461,0.00014757,2]
[421497714,1777755040000,-333.65691918,0.00014538,2]
[421498327,1777755047000,-671.2108709,0.00014757,2]
[421498328,1777755047000,-1194.82849401,0.00014757,2]
[421498329,1777755047000,-1786.4205313,0.00014774,2]
[421498333,1777755047000,-406.04704816,0.00014857,2]
[421498330,1777755047000,-526.41644102,0.00014774,2]
[421498332,1777755047000,-514.28112212,0.00014857,2]
[421498331,1777755047000,-510.96673898,0.00014857,2]
[421498341,1777755694000,-208.0,0.00012521,3]
[421498342,1777755712000,-300.0,0.00012637,2]
[421498343,1777755735000,-599.0,0.00012637,2]
[421498344,1777755758000,-407.9710193,0.00012638,2]
[421498345,1777755781000,-858.3336407,0.00012638,2]
[421498411,1777756232000,-4271.3764117,0.0001322,2]
[421498405,1777756232000,-160.0,0.0001301,2]
[421498400,1777756232000,-8934.71018321,0.00012638,2]
[421498423,1777756232000,-261.48363287,0.00014265,2]
[421498393,1777756232000,-229.6457995,0.00012529,2]
[421498395,1777756232000,-901.9031227,0.00012529,2]
[421498389,1777756232000,-214.5834101,0.00012529,2]
[421498402,1777756232000,-4211.70776186,0.00012735,2]
[421498384,1777756232000,-164.0,0.00012,3]
[421498386,1777756232000,-2156.10429607,0.0001225,2]
[421498387,1777756232000,-221.59629904,0.00012265,2]
[421498408,1777756232000,-160.0,0.0001301,2]
[421498391,1777756232000,-461.3276256,0.00012529,2]
[421498420,1777756232000,-4899.70961452,0.0001419,2]
[421498414,1777756232000,-1000.0,0.00013699,2]
[421498426,1777756232000,-151.0,0.00014305,2]
[421498443,1777756232000,-500.0,0.00014597,2]
[421498431,1777756232000,-1270.895,0.00014538,2]
[421498450,1777756232000,-500.0,0.00014597,2]
[421498446,1777756232000,-500.0,0.00014597,2]
[421498437,1777756232000,-500.0,0.00014597,2]
[421498436,1777756232000,-304.3449567,0.00014597,2]
[421498440,1777756232000,-500.0,0.00014597,2]
[421498428,1777756232000,-160.0,0.00014489,2]
[421498417,1777756232000,-1000.0,0.00013699,2]
[421498398,1777756232000,-2322.98734699,0.00012638,2]
[421498442,1777756232000,-621.06724334,0.00014597,2]
[421498519,1777756240000,-500.0,0.00014598,2]
[421498516,1777756240000,-138.24318146,0.00014598,2]
[421498517,1777756240000,-136.79779049,0.00014598,2]
[421498520,1777756240000,-500.0,0.00014598,2]
[421498524,1777756240000,-472.37686998,0.00014598,2]
[421498523,1777756240000,-231.84315202,0.00014598,2]
[421498518,1777756240000,-363.20220951,0.00014598,2]
[421498521,1777756240000,-500.0,0.00014598,2]
[421498522,1777756240000,-268.15684798,0.00014598,2]
[421498649,1777756246000,-500.0,0.00014598,2]
[421498642,1777756246000,-472.37686998,0.00014598,2]
[421498645,1777756246000,-27.62313002,0.00014598,2]
[421498647,1777756246000,-240.21309936,0.00014598,2]
[421498652,1777756246000,-2127.22746808,0.00014598,2]
[421498650,1777756246000,-218.48973542,0.00014598,2]
[421498648,1777756246000,-500.0,0.00014598,2]
[421498640,1777756246000,-27.62313002,0.00014598,2]
[421498651,1777756246000,-500.0,0.00014598,2]
[421498654,1777756246000,-2127.22746808,0.00014598,2]
[421498653,1777756246000,-2127.22746808,0.00014598,2]
[421498657,1777756246000,-2127.22746808,0.00014598,2]
[421498656,1777756246000,-2127.22746808,0.00014598,2]
[421498655,1777756246000,-2127.22746808,0.00014598,2]
[421498658,1777756246000,-2127.22746808,0.00014598,2]
[421498646,1777756246000,-259.78690064,0.00014598,2]
[421498663,1777756247000,-54.19466573,0.00014598,2]
[421498659,1777756247000,-2127.22746808,0.00014598,2]
[421498661,1777756247000,-2127.22746808,0.00014598,2]
[421498660,1777756247000,-2127.22746808,0.00014598,2]
[421498662,1777756247000,-2127.22746808,0.00014598,2]
[421498666,1777756247000,-2205.59900638,0.00014598,2]
[421498668,1777756247000,-562.67054548,0.00014598,2]
[421498664,1777756247000,-2073.03280235,0.00014598,2]
[421498665,1777756247000,-2205.59900638,0.00014598,2]
[421498670,1777756247000,-829.19857825,0.00014599,2]
[421498669,1777756247000,-3486.43762531,0.00014599,2]
[421498667,1777756247000,-300.0,0.00014598,2]
[421498707,1777757431000,-230.73245891,0.00012094,2]
[421498705,1777757431000,-2211.88561734,0.0001,2]
[421498706,1777757431000,-184.0,0.00012,3]
[421498708,1777757431000,-500.0,0.00012754,2]
[421498714,1777757431000,-18338.26090707,0.00013941,2]
[421498709,1777757431000,-1000.0,0.00013699,2]
[421498710,1777757431000,-1000.0,0.00013699,2]
[421498712,1777757431000,-3588.835357,0.00013941,2]
[421498713,1777757431000,-193.1021349,0.00013941,2]
[421498711,1777757431000,-979.8129823,0.00013941,2]
[421498731,1777757438000,-500.0,0.00014212,2]
[421498728,1777757438000,-500.0,0.00014212,2]
[421498736,1777757438000,-500.0,0.00014212,2]
[421498737,1777757438000,-500.0,0.00014212,2]
[421498730,1777757438000,-161.29150748,0.00014212,2]
[421498726,1777757438000,-242.88910312,0.00014196,2]
[421498727,1777757438000,-152.22973707,0.00014212,2]
[421498725,1777757438000,-272.26430152,0.00014094,2]
[421498724,1777757438000,-7811.88000628,0.00013941,2]
[421498723,1777757438000,-2404.81356325,0.00013941,2]
[421498732,1777757438000,-500.0,0.00014212,2]
[421498729,1777757438000,-524.22268346,0.00014212,2]
[421498734,1777757438000,-500.0,0.00014212,2]
[421498738,1777757438000,-500.0,0.00014212,2]
[421498733,1777757438000,-500.0,0.00014212,2]
[421498744,1777757438000,-621.06724334,0.00014294,2]
[421498740,1777757438000,-500.0,0.00014212,2]
[421498747,1777757438000,-286.38122553,0.00014294,2]
[421498748,1777757438000,-1874.46357129,0.00014296,2]
[421498745,1777757438000,-500.0,0.00014294,2]
[421498746,1777757438000,-500.0,0.00014294,2]
[421498741,1777757438000,-500.0,0.00014212,2]
[421498743,1777757438000,-572.28204926,0.00014212,2]
[421498749,1777757438000,-2375.12,0.00014296,2]
[421498739,1777757438000,-500.0,0.00014212,2]
[421498742,1777757438000,-500.0,0.00014212,2]
[421498735,1777757438000,-500.0,0.00014212,2]
[421498754,1777757440000,-390.7,0.00014296,2]
[421498753,1777757440000,-937.2954476,0.00014296,2]
[421498752,1777757440000,-16015.54180994,0.00014296,2]
[421498768,1777757443000,-3339.73672122,0.00014296,2]
[421498766,1777757443000,-8008.41106366,0.00014296,2]
[421498767,1777757443000,-3803.0474745,0.00014296,2]
[421498765,1777757443000,-1357.39668019,0.00014296,2]
[421498769,1777757446000,-2028.65,0.00014296,2]
[421498772,1777757612000,5498.32436094,0.0002191,120]
[421498775,1777758442000,2000.43373077,0.00021917,120]
[421498938,1777758640000,-500.0,0.00014093,2]
[421498921,1777758640000,-500.0,0.00014093,2]
[421498918,1777758640000,-500.0,0.00014093,2]
[421498927,1777758640000,-500.0,0.00014093,2]
[421498928,1777758640000,-500.0,0.00014093,2]
[421498953,1777758640000,-500.0,0.00014093,2]
[421498929,1777758640000,-500.0,0.00014093,2]
[421498931,1777758640000,-500.0,0.00014093,2]
[421498930,1777758640000,-500.0,0.00014093,2]
[421498926,1777758640000,-349.44304642,0.00014093,2]
[421498933,1777758640000,-500.0,0.00014093,2]
[421498934,1777758640000,-500.0,0.00014093,2]
[421498937,1777758640000,-500.0,0.00014093,2]
[421498936,1777758640000,-500.0,0.00014093,2]
[421498935,1777758640000,-500.0,0.00014093,2]
[421498939,1777758640000,-500.0,0.00014093,2]
[421498940,1777758640000,-500.0,0.00014093,2]
[421498932,1777758640000,-500.0,0.00014093,2]
[421498923,1777758640000,-500.0,0.00014093,2]
[421498916,1777758640000,-304.3449567,0.00014093,2]
[421498920,1777758640000,-500.0,0.00014093,2]
[421498955,1777758640000,-500.0,0.00014093,2]
[421498900,1777758640000,-5000.0,0.00010877,2]
[421498905,1777758640000,-277.8582176,0.00013154,2]
[421498908,1777758640000,-5016.61122487,0.00013994,2]
[421498906,1777758640000,-1000.0,0.00013699,2]
[421498907,1777758640000,-1000.0,0.00013699,2]
[421498901,1777758640000,-5000.0,0.00010987,2]
[421498904,1777758640000,-185.0,0.00012027,3]
[421498903,1777758640000,-235.47306577,0.00011154,2]
[421498902,1777758640000,-300.0,0.00011153,2]
[421498914,1777758640000,-6122.2669168,0.00014066,2]
[421498912,1777758640000,-643.7502304,0.00014066,2]
[421498922,1777758640000,-500.0,0.00014093,2]
[421498924,1777758640000,-500.0,0.00014093,2]
[421498909,1777758640000,-194.31128252,0.00013994,2]
[421498911,1777758640000,-734.8597367,0.00014066,2]
[421498913,1777758640000,-178.6775912,0.00014066,2]
[421498910,1777758640000,-518.2300689,0.00014066,2]
[421498952,1777758640000,-500.0,0.00014093,2]
[421498987,1777758640000,-1276.77034016,0.00014094,2]
[421498954,1777758640000,-500.0,0.00014093,2]
[421498976,1777758640000,-1231.97138084,0.00014094,2]
[421498978,1777758640000,-1231.97138084,0.00014094,2]
[421498988,1777758640000,-1276.77034016,0.00014094,2]
[421498993,1777758640000,-1276.77034016,0.00014094,2]
[421498991,1777758640000,-1276.77034016,0.00014094,2]
[421498980,1777758640000,-1231.97138084,0.00014094,2]
[421498999,1777758640000,-1276.77034016,0.00014094,2]
[421498997,1777758640000,-1276.77034016,0.00014094,2]
[421498995,1777758640000,-1276.77034016,0.00014094,2]
[421498983,1777758640000,-1231.97138084,0.00014094,2]
[421499001,1777758640000,-1276.77034016,0.00014094,2]
[421498984,1777758640000,-1231.97138084,0.00014094,2]
[421499007,1777758640000,-12645.45011976,0.00014095,2]
[421499010,1777758640000,-665.05,0.00014095,2]
[421499005,1777758640000,-1858.41016175,0.00014094,2]
[421499003,1777758640000,-1276.77034016,0.00014094,2]
[421498942,1777758640000,-395.42268625,0.00014093,2]
[421498974,1777758640000,-1231.97138084,0.00014094,2]
[421498972,1777758640000,-1231.97138084,0.00014094,2]
[421498970,1777758640000,-1231.97138084,0.00014094,2]
[421498962,1777758640000,-1231.97138084,0.00014094,2]
[421498944,1777758640000,-500.0,0.00014093,2]
[421498943,1777758640000,-500.0,0.00014093,2]
[421498947,1777758640000,-500.0,0.00014093,2]
[421498949,1777758640000,-500.0,0.00014093,2]
[421498946,1777758640000,-500.0,0.00014093,2]
[421498950,1777758640000,-500.0,0.00014093,2]
[421498941,1777758640000,-500.0,0.00014093,2]
[421498965,1777758640000,-1231.97138084,0.00014094,2]
[421498951,1777758640000,-499.99999999,0.00014093,2]
[421498945,1777758640000,-500.0,0.00014093,2]
[421498961,1777758640000,-345.97310309,0.00014094,2]
[421498957,1777758640000,-650.0,0.00014093,2]
[421498958,1777758640000,-500.0,0.00014094,2]
[421498960,1777758640000,-1231.97138084,0.00014094,2]
[421498959,1777758640000,-500.0,0.00014094,2]
[421498963,1777758640000,-533.34051659,0.00014094,2]
[421498968,1777758640000,-1231.97138084,0.00014094,2]
[421498966,1777758640000,-1231.97138084,0.00014094,2]
[421498956,1777758640000,-500.0,0.00014093,2]
[421499082,1777758647000,-2712.91493038,0.00013954,2]
[421499078,1777758647000,-756.81431939,0.00013954,2]
[421499081,1777758647000,-1219.91665635,0.00013954,2]
[421499080,1777758647000,-310.35409388,0.00013954,2]
[421499084,1777758647000,-48792.43719606,0.00014095,2]
[421499083,1777758647000,-27375.45048729,0.00014095,2]
[421499098,1777758647000,-12719.50549113,0.00014095,2]
[421499088,1777758647000,-304.0,0.00014095,2]
[421499090,1777758647000,-38722.94164771,0.00014095,2]
[421499092,1777758647000,-160604.20087364,0.00014095,2]
[421499091,1777758647000,-7070.28912534,0.00014095,2]
[421499094,1777758647000,-842.0,0.00014095,2]
[421499089,1777758647000,-7709.96853632,0.00014095,2]
[421499153,1777759832000,-505.9535,0.00013794,2]
[421499161,1777759832000,-500.0,0.00013893,2]
[421499168,1777759832000,-225.65142168,0.00013893,2]
[421499159,1777759832000,-500.0,0.00013893,2]
[421499167,1777759832000,-500.0,0.00013893,2]
[421499165,1777759832000,-500.0,0.00013893,2]
[421499163,1777759832000,-500.0,0.00013893,2]
[421499157,1777759832000,-500.0,0.00013893,2]
[421499170,1777759832000,-500.0,0.00013893,2]
[421499172,1777759832000,-500.0,0.00013893,2]
[421499174,1777759832000,-500.0,0.00013893,2]
[421499155,1777759832000,-500.0,0.00013893,2]
[421499151,1777759832000,-1068.03437424,0.00013794,2]
[421499147,1777759832000,-1000.0,0.00013699,2]
[421499149,1777759832000,-1000.0,0.00013699,2]
[421499138,1777759832000,-1633.46963059,0.00013175,2]
[421499136,1777759832000,-408.77618383,0.00013175,2]
[421499134,1777759832000,-325.0334158,0.00012658,2]
[421499144,1777759832000,-325.548554,0.00013602,2]
[421499142,1777759832000,-195.9491867,0.00013602,2]
[421499132,1777759832000,-151.4090701,0.00012658,2]
[421499140,1777759832000,-325.612506,0.00013602,2]
[421499127,1777759832000,-2198.73574796,0.0001147,2]
[421499131,1777759832000,-163.0,0.00012055,3]
[421499129,1777759832000,-245.47024571,0.00011674,2]
[421499146,1777759832000,-289.65488994,0.00013674,2]
[421499181,1777759832000,-500.0,0.00013893,2]
[421499194,1777759832000,-500.0,0.00014095,2]
[421499177,1777759832000,-500.0,0.00013893,2]
[421499176,1777759832000,-203.33217973,0.00013893,2]
[421499234,1777759832000,-151.0,0.0001418,2]
[421499229,1777759832000,-151.0,0.0001418,2]
[421499232,1777759832000,-151.0,0.0001418,2]
[421499222,1777759832000,-151.0,0.0001418,2]
[421499227,1777759832000,-151.0,0.0001418,2]
[421499225,1777759832000,-151.0,0.0001418,2]
[421499223,1777759832000,-2150.738,0.0001418,2]
[421499215,1777759832000,-151.0,0.0001418,2]
[421499211,1777759832000,-151.0,0.0001418,2]
[421499213,1777759832000,-151.0,0.0001418,2]
[421499209,1777759832000,-151.0,0.0001418,2]
[421499218,1777759832000,-151.0,0.0001418,2]
[421499196,1777759832000,-152.0,0.00014122,7]
[421499208,1777759832000,-151.0,0.0001418,2]
[421499179,1777759832000,-500.0,0.00013893,2]
[421499185,1777759832000,-14462.44004721,0.00013894,2]
[421499192,1777759832000,-939.8173542,0.00013991,2]
[421499187,1777759832000,-1347.68384651,0.00013991,2]
[421499190,1777759832000,-1871.69143219,0.00013991,2]
[421499183,1777759832000,-500.4252,0.00013893,2]
[421499205,1777759832000,-151.0,0.0001418,2]
[421499198,1777759832000,-1040.83490862,0.00014175,2]
[421499199,1777759832000,-537.6845,0.0001418,2]
[421499203,1777759832000,-151.0,0.0001418,2]
[421499201,1777759832000,-151.0,0.0001418,2]
[421499220,1777759832000,-151.0,0.0001418,2]
[421499301,1777759833000,-193.09790576,0.00014754,2]
[421499283,1777759833000,-341.0,0.00014754,2]
[421499287,1777759833000,-341.0,0.00014754,2]
[421499290,1777759833000,-205.31203652,0.00014754,2]
[421499292,1777759833000,-341.0,0.00014754,2]
[421499297,1777759833000,-377.21897799,0.00014754,2]
[421499295,1777759833000,-341.0,0.00014754,2]
[421499299,1777759833000,-164.0,0.00014754,2]
[421499303,1777759833000,-2018.00544157,0.00014776,2]
[421499310,1777759833000,-10678.70183258,0.00015,2]
[421499305,1777759833000,-151.0,0.000149,2]
[421499307,1777759833000,-255.19780366,0.000149,2]
[421499308,1777759833000,-255.19780364,0.000149,2]
[421499309,1777759833000,-2213.0,0.00014916,2]
[421499285,1777759833000,-649.0,0.00014754,2]
[421499312,1777759833000,-242.18117216,0.00015199,2]
[421499311,1777759833000,-185.3737831,0.00015068,2]
[421499314,1777759833000,-1125.69881066,0.00015199,2]
[421499313,1777759833000,-500.0,0.00015199,2]
[421499316,1777759833000,-223.33836161,0.00015199,2]
[421499306,1777759833000,-151.0,0.000149,2]
[421499280,1777759833000,-649.0,0.00014754,2]
[421499266,1777759833000,-1690.95441725,0.00014598,2]
[421499278,1777759833000,-649.0,0.00014754,2]
[421499236,1777759833000,-151.0,0.0001418,2]
[421499237,1777759833000,-151.0,0.0001418,2]
[421499240,1777759833000,-151.0,0.0001418,2]
[421499241,1777759833000,-158.27935266,0.0001418,2]
[421499243,1777759833000,-160.0,0.00014347,2]
[421499245,1777759833000,-957.0,0.00014411,2]
[421499247,1777759833000,-151.0,0.00014424,2]
[421499249,1777759833000,-160.0,0.00014434,2]
[421499251,1777759833000,-160.0,0.00014434,2]
[421499253,1777759833000,-649.0,0.00014593,2]
[421499255,1777759833000,-607.73976831,0.00014597,2]
[421499257,1777759833000,-237.09142265,0.00014598,2]
[421499259,1777759833000,-434.45459805,0.00014598,2]
[421499270,1777759833000,-649.0,0.00014599,2]
[421499263,1777759833000,-1737.81839218,0.00014598,2]
[421499264,1777759833000,-947.4173249,0.00014598,2]
[421499315,1777759833000,-1125.69881066,0.00015199,2]
[421499268,1777759833000,-649.0,0.00014599,2]
[421499274,1777759833000,-341.0,0.00014599,2]
[421499272,1777759833000,-341.0,0.00014599,2]
[421499276,1777759833000,-2230.315306,0.00014728,2]
[421499281,1777759833000,-649.0,0.00014754,2]
[421499323,1777759833000,-1125.69881066,0.00015199,2]
[421499261,1777759833000,-422.73860431,0.00014598,2]
[421499322,1777759833000,-1125.69881066,0.00015199,2]
[421499346,1777759833000,-151.0,0.000159,2]
[421499349,1777759833000,-2355.13402191,0.00015979,2]
[421499353,1777759833000,-23316.70758965,0.00016,2]
[421499352,1777759833000,-1000.0,0.00016,2]
[421499355,1777759833000,-3000.0,0.0001602,2]
[421499354,1777759833000,-3000.0,0.0001601,2]
[421499350,1777759833000,-218.55360964,0.00016,2]
[421499356,1777759833000,-184.92,0.00016028,2]
[421499358,1777759833000,-3000.0,0.0001603,2]
[421499361,1777759833000,-3000.0,0.0001605,2]
[421499357,1777759833000,-183.34,0.00016028,2]
[421499359,1777759833000,-3000.0,0.0001604,2]
[421499360,1777759833000,-151.0,0.0001604,2]
[421499364,1777759833000,-3000.0,0.0001607,2]
[421499366,1777759833000,-3000.0,0.0001609,2]
[421499367,1777759833000,-200.0,0.000161,2]
[421499362,1777759833000,-5000.0,0.0001606,2]
[421499363,1777759833000,-3000.0,0.0001606,2]
[421499365,1777759833000,-3000.0,0.0001608,2]
[421499368,1777759833000,-64760.71570788,0.000161,2]
[421499318,1777759833000,-1125.69881066,0.00015199,2]
[421499348,1777759833000,-183.7,0.00015934,2]
[421499347,1777759833000,-151.0,0.000159,2]
[421499351,1777759833000,-3000.0,0.00016,2]
[421499345,1777759833000,-10678.70183258,0.000159,2]
[421499324,1777759833000,-1125.69881066,0.00015199,2]
[421499320,1777759833000,-1125.69881066,0.00015199,2]
[421499325,1777759833000,-10678.70183258,0.000152,2]
[421499328,1777759833000,-151.0,0.00015205,2]
[421499331,1777759833000,-2197.06774625,0.00015378,2]
[421499344,1777759833000,-2398.4119403,0.00015824,2]
[421499330,1777759833000,-10678.70183258,0.000153,2]
[421499326,1777759833000,-151.0,0.000152,2]
[421499327,1777759833000,-151.0,0.00015205,2]
[421499334,1777759833000,-151.0,0.000155,2]
[421499333,1777759833000,-10678.70183258,0.000155,2]
[421499329,1777759833000,-2312.83697232,0.00015276,2]
[421499332,1777759833000,-5807.30444142,0.00015484,2]
[421499336,1777759833000,-1000.0,0.000155,2]
[421499337,1777759833000,-176.91,0.0001554,2]
[421499339,1777759833000,-10678.70183258,0.000156,2]
[421499343,1777759833000,-180.62,0.00015816,2]
[421499342,1777759833000,-10678.70183258,0.000158,2]
[421499341,1777759833000,-333.83953416,0.00015674,2]
[421499340,1777759833000,-179.81,0.00015631,2]
[421499338,1777759833000,-177.25,0.0001557,2]
[421499335,1777759833000,-151.0,0.000155,2]
[421499411,1777759838000,-442.0,0.00014916,2]
[421499409,1777759838000,-255.19780364,0.000149,2]
[421499407,1777759838000,-581.0,0.0001147,2]
[421499422,1777759838000,-184.37870973,0.00015199,2]
[421499413,1777759838000,-1125.69881066,0.00015199,2]
[421499419,1777759838000,-33.69937466,0.00015199,2]
[421499421,1777759838000,-1125.69881066,0.00015199,2]
[421499415,1777759838000,-1091.999436,0.00015199,2]
[421499487,1777759841000,-800.0,0.000137,2]
[421499757,1777761043000,-196.0,0.0001263,3]
[421499758,1777761043000,-242.31740134,0.00012751,2]
[421499760,1777761043000,-160.0,0.00013673,2]
[421499761,1777761043000,-120.28161501,0.00013673,2]
[421499759,1777761043000,-160.0,0.00013673,2]
[421499764,1777761043000,-1000.0,0.00013699,2]
[421499765,1777761043000,-4345.87275527,0.000137,2]
[421499763,1777761043000,-1000.0,0.00013699,2]
[421499766,1777761043000,-1821.16747683,0.000137,2]
[421499762,1777761043000,-39.71838499,0.00013673,2]
[421499777,1777761047000,-600.0,0.00012751,2]
[421499778,1777761047000,-14482.21699798,0.000137,2]
[421499780,1777761047000,-500.0,0.00013871,2]
[421499779,1777761047000,-12953.87825272,0.000137,2]
[421499781,1777761047000,-488.65613315,0.00013871,2]
[421499783,1777761047000,-1011.28514249,0.00013872,2]
[421499785,1777761047000,-1011.28514249,0.00013872,2]
[421499796,1777761047000,-1011.28514249,0.00013872,2]
[421499782,1777761047000,-169.52682051,0.00013872,2]
[421499787,1777761047000,-1011.28514249,0.00013872,2]
[421499799,1777761047000,-1011.28514249,0.00013872,2]
[421499798,1777761047000,-1011.28514249,0.00013872,2]
[421499794,1777761047000,-1011.28514249,0.00013872,2]
[421499789,1777761047000,-1011.28514249,0.00013872,2]
[421499801,1777761047000,-586.15682034,0.00013872,2]
[421499800,1777761047000,-1011.28514249,0.00013872,2]
[421499791,1777761047000,-1011.28514249,0.00013872,2]
[421499792,1777761047000,-1011.28514249,0.00013872,2]
[421499805,1777761056000,120434.36455956,7.6e-05,2]
[421499917,1777762238000,-999.93773026,0.00013569,2]
[421499925,1777762238000,-500.0,0.00013569,2]
[421499923,1777762238000,-500.0,0.00013569,2]
[421499924,1777762238000,-999.93773026,0.00013569,2]
[421499914,1777762238000,-999.93773026,0.00013569,2]
[421499911,1777762238000,-264.64534619,0.00013569,2]
[421499919,1777762238000,-999.93773026,0.00013569,2]
[421499913,1777762238000,-999.93773026,0.00013569,2]
[421499912,1777762238000,-999.93773026,0.00013569,2]
[421499910,1777762238000,-506.33685313,0.00013569,2]
[421499909,1777762238000,-161.99,0.00012411,2]
[421499916,1777762238000,-999.93773026,0.00013569,2]
[421499918,1777762238000,-999.93773026,0.00013569,2]
[421499915,1777762238000,-999.93773026,0.00013569,2]
[421499929,1777762238000,-500.0,0.00013569,2]
[421499921,1777762238000,-999.93773026,0.00013569,2]
[421499926,1777762238000,-999.93773026,0.00013569,2]
[421499934,1777762238000,-999.93773026,0.00013569,2]
[421499936,1777762238000,-999.93773026,0.00013569,2]
[421499937,1777762238000,-999.93773026,0.00013569,2]
[421499933,1777762238000,-449.22915787,0.00013569,2]
[421499930,1777762238000,-999.93773026,0.00013569,2]
[421499935,1777762238000,-999.93773026,0.00013569,2]
[421499932,1777762238000,-322.88485525,0.00013569,2]
[421499928,1777762238000,-474.64233015,0.00013569,2]
[421499927,1777762238000,-500.0,0.00013569,2]
[421499922,1777762238000,-500.0,0.00013569,2]
[421499920,1777762238000,-999.93773026,0.00013569,2]
[421499931,1777762238000,-500.0,0.00013569,2]
[421499939,1777762239000,-999.93773026,0.00013569,2]
[421499940,1777762239000,-999.93773026,0.00013569,2]
[421499938,1777762239000,-999.93773026,0.00013569,2]
[421499941,1777762239000,-999.93773026,0.00013569,2]
[421499943,1777762239000,-1809.49023953,0.0001357,2]
[421499942,1777762239000,-4677.20860416,0.0001357,2]
[421499962,1777762241000,-643.78105749,0.0001357,2]
[421499956,1777762241000,-33892.77053145,0.0001357,2]
[421500231,1777762247000,-7470.39449217,0.0001357,2]
[421500211,1777762247000,-6175.0,0.0001357,2]
[421500204,1777762247000,-67624.54527232,0.0001357,2]
[421500285,1777763431000,-294.03811208,0.00011268,2]
[421500288,1777763431000,-1980.66811409,0.00011268,2]
[421500292,1777763431000,-259.20859315,0.00011921,2]
[421500294,1777763431000,-1515.9772999,0.00011981,2]
[421500290,1777763431000,-3906.18129103,0.00011382,2]
[421501414,1777763446000,-500.0,0.00012612,2]
[421501412,1777763446000,-500.0,0.00012612,2]
[421501418,1777763446000,-500.0,0.00012612,2]
[421501420,1777763446000,-266.00105183,0.00012612,2]
[421501416,1777763446000,-500.0,0.00012612,2]
[421501427,1777763446000,-4410.78260281,0.00013169,2]
[421501428,1777763446000,-3538.26790741,0.0001317,2]
[421501423,1777763446000,-200.0,0.00012697,7]
[421501425,1777763446000,-5166.84462739,0.00013116,7]
[421501422,1777763446000,-200.0,0.00012697,2]
[421501632,1777764008000,2018.0,8.01e-05,2]
[421501650,1777764632000,-124.4086453,0.0001233,2]
[421501648,1777764632000,-268.02857873,0.00011355,2]
[421501647,1777764632000,-549.43715957,0.00010758,2]
[421501652,1777764632000,-455.5460265,0.00012752,2]
[421501651,1777764632000,-180.86933223,0.00012388,2]
[421501649,1777764632000,-36.1582617,0.0001233,2]
[421501656,1777764632000,-952.38351762,0.00012967,2]
[421501658,1777764632000,-225.75786162,0.00012967,2]
[421501657,1777764632000,-952.38351762,0.00012967,2]
[421501655,1777764632000,-952.38351762,0.00012967,2]
[421501653,1777764632000,-300.0,0.00012966,2]
[421501654,1777764632000,-354.43579719,0.00012967,2]
[421501692,1777764638000,-979.78898174,0.00012967,2]
[421501690,1777764638000,-979.78898174,0.00012967,2]